[Event "Titled Tuesday Blitz October 11 Early 2022"]
[White "Vachylia, Andrii"]
[Black "Tymrakiewicz, Rafal"]
[WhiteFideId "14137224"]
[BlackFideId "1108832"]
[WhiteElo "2318"]
[BlackElo "2138"]
[Result "0-1"]
[Round "03"]
[TimeControl "180+1"]
[Date "2022.10.12"]
[WhiteClock "0:00:10"]
[BlackClock "0:00:06"]

1. e4 {[%clk 0:03:00]}  Nf6 {[%clk 0:02:51]} 2. Nc3 {[%clk 0:02:55]}  d5 {[%clk 0:02:51]} 3. e5 {[%clk 0:02:55]}  Ne4 {[%clk 0:02:51]} 4. Nce2 {[%clk 0:02:53]}  f6 {[%clk 0:02:51]} 5. d3 {[%clk 0:02:52]}  Ng5 {[%clk 0:02:50]} 6. f4 {[%clk 0:02:51]}  Nf7 {[%clk 0:02:50]} 7. Nf3 {[%clk 0:02:49]}  Bg4 {[%clk 0:02:46]} 8. d4 {[%clk 0:02:46]}  e6 {[%clk 0:02:35]} 9. Ng3 {[%clk 0:02:43]}  c5 {[%clk 0:02:28]} 10. c3 {[%clk 0:02:31]}  Nc6 {[%clk 0:02:28]} 11. Be3 {[%clk 0:02:26]}  Qb6 {[%clk 0:02:20]} 12. Qb3 {[%clk 0:02:08]}  Bxf3 {[%clk 0:02:12]} 13. gxf3 {[%clk 0:02:07]}  cxd4 {[%clk 0:01:49]} 14. cxd4 {[%clk 0:01:47]}  Bb4+ {[%clk 0:01:42]} 15. Kf2 {[%clk 0:01:46]}  fxe5 {[%clk 0:01:28]} 16. fxe5 {[%clk 0:01:45]}  O-O {[%clk 0:01:27]} 17. Qd3 {[%clk 0:01:31]}  Nfxe5 {[%clk 0:01:11]} 18. dxe5 {[%clk 0:01:30]}  d4 {[%clk 0:01:11]} 19. Bg5 {[%clk 0:01:11]}  Nxe5 {[%clk 0:01:03]} 20. Qe4 {[%clk 0:01:11]}  Nxf3 {[%clk 0:01:00]} 21. Bf4 {[%clk 0:01:09]}  Ng5 {[%clk 0:00:46]} 22. Qe5 {[%clk 0:00:57]}  Rxf4+ {[%clk 0:00:41]} 23. Qxf4 {[%clk 0:00:47]}  Rf8 {[%clk 0:00:39]} 24. Qxf8+ {[%clk 0:00:47]}  Bxf8 {[%clk 0:00:35]} 25. Bd3 {[%clk 0:00:44]}  Qxb2+ {[%clk 0:00:34]} 26. Ne2 {[%clk 0:00:44]}  Qd2 {[%clk 0:00:30]} 27. Rad1 {[%clk 0:00:40]}  Qe3+ {[%clk 0:00:30]} 28. Kf1 {[%clk 0:00:40]}  Nh3 {[%clk 0:00:27]} 29. Kg2 {[%clk 0:00:38]}  Nf2 {[%clk 0:00:17]} 30. Bc4 {[%clk 0:00:33]}  Nxh1 {[%clk 0:00:15]} 31. Rxh1 {[%clk 0:00:34]}  d3 {[%clk 0:00:13]} 32. Ng3 {[%clk 0:00:34]}  Qd2+ {[%clk 0:00:13]} 33. Kh3 {[%clk 0:00:33]}  Qh6+ {[%clk 0:00:12]} 34. Kg2 {[%clk 0:00:33]}  Qd2+ {[%clk 0:00:12]} 35. Kh3 {[%clk 0:00:33]}  g6 {[%clk 0:00:13]} 36. Rf1 {[%clk 0:00:32]}  Kg7 {[%clk 0:00:12]} 37. Bxe6 {[%clk 0:00:32]}  Bd6 {[%clk 0:00:12]} 38. Rf7+ {[%clk 0:00:20]}  Kh6 {[%clk 0:00:12]} 39. Rd7 {[%clk 0:00:20]}  Qf4 {[%clk 0:00:10]} 40. Bg8 {[%clk 0:00:18]}  Kg5 {[%clk 0:00:07]} 41. Bd5 {[%clk 0:00:13]}  Qg4+ {[%clk 0:00:07]} 42. Kg2 {[%clk 0:00:13]}  Qxd7 {[%clk 0:00:08]} 43. Ne4+ {[%clk 0:00:12]}  Kf4 {[%clk 0:00:08]} 44. Nf2 {[%clk 0:00:13]}  Ke3 {[%clk 0:00:08]} 45. Bf3 {[%clk 0:00:10]}  d2 {[%clk 0:00:07]} 46. Nd1+ {[%clk 0:00:10]}  Kd4 {[%clk 0:00:07]} 47. Nf2 {[%clk 0:00:10]}  Qf5 {[%clk 0:00:06]} 48. Ne4 {[%clk 0:00:10]}  Qxe4 {[%clk 0:00:06]} 0-1


[Site "https://www.chess.com"]

[Event "Titled Tuesday Blitz October 11 Early 2022"]
[White "Veleshnja, Zino"]
[Black "Manon-og, Ramon Jr."]
[WhiteFideId "4701313"]
[BlackFideId "5200776"]
[WhiteElo "2167"]
[BlackElo "2228"]
[Result "0-1"]
[Round "03"]
[TimeControl "180+1"]
[Date "2022.10.12"]
[WhiteClock "0:00:07"]
[BlackClock "0:00:04"]

1. d4 {[%clk 0:03:00]}  Nf6 {[%clk 0:02:58]} 2. c4 {[%clk 0:03:01]}  g6 {[%clk 0:02:58]} 3. Nc3 {[%clk 0:03:01]}  d5 {[%clk 0:02:59]} 4. Nf3 {[%clk 0:03:02]}  Bg7 {[%clk 0:02:58]} 5. Bg5 {[%clk 0:03:02]}  Ne4 {[%clk 0:02:58]} 6. cxd5 {[%clk 0:03:02]}  Nxg5 {[%clk 0:02:58]} 7. Nxg5 {[%clk 0:03:03]}  e6 {[%clk 0:02:59]} 8. Qd2 {[%clk 0:03:02]}  h6 {[%clk 0:02:57]} 9. Nh3 {[%clk 0:03:01]}  exd5 {[%clk 0:02:57]} 10. Nf4 {[%clk 0:03:02]}  c6 {[%clk 0:02:56]} 11. g3 {[%clk 0:03:03]}  O-O {[%clk 0:02:56]} 12. Bg2 {[%clk 0:03:03]}  Qb6 {[%clk 0:02:55]} 13. e3 {[%clk 0:03:00]}  Nd7 {[%clk 0:02:55]} 14. O-O {[%clk 0:03:00]}  Nf6 {[%clk 0:02:56]} 15. Na4 {[%clk 0:02:54]}  Qd8 {[%clk 0:02:42]} 16. Nc5 {[%clk 0:02:52]}  b6 {[%clk 0:02:41]} 17. Ncd3 {[%clk 0:02:52]}  Ne4 {[%clk 0:02:42]} 18. Qc2 {[%clk 0:02:47]}  Bb7 {[%clk 0:02:34]} 19. Ne5 {[%clk 0:02:43]}  c5 {[%clk 0:02:29]} 20. Rfd1 {[%clk 0:02:31]}  cxd4 {[%clk 0:02:26]} 21. exd4 {[%clk 0:02:31]}  Rc8 {[%clk 0:02:27]} 22. Qd3 {[%clk 0:02:28]}  Re8 {[%clk 0:02:04]} 23. h4 {[%clk 0:01:39]}  Bxe5 {[%clk 0:01:47]} 24. dxe5 {[%clk 0:01:39]}  Rxe5 {[%clk 0:01:47]} 25. Qd4 {[%clk 0:01:40]}  Qe7 {[%clk 0:01:33]} 26. Nd3 {[%clk 0:01:23]}  Rf5 {[%clk 0:01:24]} 27. Bh3 {[%clk 0:01:15]}  Rc4 {[%clk 0:01:18]} 28. Qe3 {[%clk 0:01:07]}  Rf6 {[%clk 0:01:10]} 29. Nf4 {[%clk 0:01:01]}  Rc2 {[%clk 0:01:04]} 30. Bg2 {[%clk 0:00:33]}  Rxb2 {[%clk 0:00:50]} 31. Nxd5 {[%clk 0:00:30]}  Bxd5 {[%clk 0:00:45]} 32. Rxd5 {[%clk 0:00:31]}  Re6 {[%clk 0:00:20]} 33. Qd4 {[%clk 0:00:28]}  Nf6 {[%clk 0:00:13]} 34. Qxb2 {[%clk 0:00:28]}  Nxd5 {[%clk 0:00:11]} 35. Bxd5 {[%clk 0:00:28]}  Re2 {[%clk 0:00:10]} 36. Re1 {[%clk 0:00:29]}  Rxe1+ {[%clk 0:00:10]} 37. Kg2 {[%clk 0:00:29]}  Re2 {[%clk 0:00:10]} 38. Qc3 {[%clk 0:00:27]}  Qe5 {[%clk 0:00:09]} 39. Qc4 {[%clk 0:00:23]}  Kg7 {[%clk 0:00:09]} 40. Bf3 {[%clk 0:00:22]}  Rb2 {[%clk 0:00:08]} 41. h5 {[%clk 0:00:16]}  Qc5 {[%clk 0:00:08]} 42. Qf1 {[%clk 0:00:15]}  g5 {[%clk 0:00:07]} 43. Qe1 {[%clk 0:00:15]}  Rxa2 {[%clk 0:00:06]} 44. g4 {[%clk 0:00:15]}  b5 {[%clk 0:00:05]} 45. Kg3 {[%clk 0:00:15]}  b4 {[%clk 0:00:04]} 46. Bd1 {[%clk 0:00:11]}  Ra3+ {[%clk 0:00:04]} 47. Kg2 {[%clk 0:00:11]}  b3 {[%clk 0:00:05]} 48. Qe2 {[%clk 0:00:07]}  Ra2 {[%clk 0:00:04]} 49. Qd3 {[%clk 0:00:07]}  Qxf2+ {[%clk 0:00:04]} 0-1


[Site "https://www.chess.com"]

[Event "Titled Tuesday Blitz October 11 Early 2022"]
[White "Villamayor, Buenaventura"]
[Black "Skliarov, Viktor"]
[WhiteFideId "5200393"]
[BlackFideId "14106736"]
[WhiteElo "2301"]
[BlackElo "2284"]
[Result "1-0"]
[Round "03"]
[TimeControl "180+1"]
[Date "2022.10.12"]
[WhiteClock "0:00:11"]
[BlackClock "0:00:05"]

1. e4 {[%clk 0:03:00]}  c5 {[%clk 0:02:59]} 2. c3 {[%clk 0:03:01]}  d6 {[%clk 0:02:59]} 3. d4 {[%clk 0:03:01]}  Nf6 {[%clk 0:02:59]} 4. Bd3 {[%clk 0:02:58]}  g6 {[%clk 0:02:59]} 5. Nf3 {[%clk 0:02:58]}  Bg7 {[%clk 0:02:58]} 6. O-O {[%clk 0:02:58]}  O-O {[%clk 0:02:57]} 7. h3 {[%clk 0:02:58]}  a6 {[%clk 0:02:57]} 8. Qe2 {[%clk 0:02:55]}  Nc6 {[%clk 0:02:43]} 9. a3 {[%clk 0:02:45]}  b5 {[%clk 0:02:31]} 10. Bg5 {[%clk 0:02:40]}  c4 {[%clk 0:02:27]} 11. Bc2 {[%clk 0:02:39]}  e5 {[%clk 0:02:28]} 12. a4 {[%clk 0:02:23]}  Bb7 {[%clk 0:02:11]} 13. b3 {[%clk 0:02:18]}  exd4 {[%clk 0:02:04]} 14. cxd4 {[%clk 0:02:16]}  Nb4 {[%clk 0:02:04]} 15. bxc4 {[%clk 0:01:45]}  Nxc2 {[%clk 0:02:02]} 16. Qxc2 {[%clk 0:01:43]}  Bxe4 {[%clk 0:01:33]} 17. Qxe4 {[%clk 0:01:40]}  Nxe4 {[%clk 0:01:33]} 18. Bxd8 {[%clk 0:01:40]}  Rfxd8 {[%clk 0:01:34]} 19. axb5 {[%clk 0:01:37]}  axb5 {[%clk 0:01:34]} 20. Rxa8 {[%clk 0:01:35]}  Rxa8 {[%clk 0:01:35]} 21. cxb5 {[%clk 0:01:36]}  Rb8 {[%clk 0:01:35]} 22. Na3 {[%clk 0:01:32]}  Nc3 {[%clk 0:01:35]} 23. Re1 {[%clk 0:01:20]}  d5 {[%clk 0:01:31]} 24. Re3 {[%clk 0:01:17]}  Na4 {[%clk 0:01:18]} 25. Rb3 {[%clk 0:01:12]}  Nb6 {[%clk 0:00:56]} 26. Nc2 {[%clk 0:01:01]}  Bf8 {[%clk 0:00:52]} 27. Ne5 {[%clk 0:00:57]}  Ra8 {[%clk 0:00:47]} 28. g4 {[%clk 0:00:53]}  Ra2 {[%clk 0:00:44]} 29. Nb4 {[%clk 0:00:53]}  Rd2 {[%clk 0:00:42]} 30. Nbc6 {[%clk 0:00:51]}  f6 {[%clk 0:00:38]} 31. Nd3 {[%clk 0:00:48]}  Bd6 {[%clk 0:00:36]} 32. Nc5 {[%clk 0:00:46]}  Rc2 {[%clk 0:00:29]} 33. Nb7 {[%clk 0:00:43]}  Bf8 {[%clk 0:00:25]} 34. Re3 {[%clk 0:00:36]}  Rb2 {[%clk 0:00:24]} 35. Re8 {[%clk 0:00:31]}  Rxb5 {[%clk 0:00:23]} 36. Nbd8 {[%clk 0:00:31]}  Nd7 {[%clk 0:00:12]} 37. Kg2 {[%clk 0:00:19]}  Rb6 {[%clk 0:00:08]} 38. Ne7+ {[%clk 0:00:16]}  Kg7 {[%clk 0:00:08]} 39. Nxd5 {[%clk 0:00:17]}  Rd6 {[%clk 0:00:07]} 40. Nc7 {[%clk 0:00:15]}  Kh6 {[%clk 0:00:04]} 41. Nf7+ {[%clk 0:00:12]}  Kg7 {[%clk 0:00:04]} 42. Nxd6 {[%clk 0:00:12]}  Bxd6 {[%clk 0:00:05]} 43. Rd8 {[%clk 0:00:11]} 1-0


[Site "https://www.chess.com"]

[Event "Titled Tuesday Blitz October 11 Early 2022"]
[White "Weetik, Vjacheslav"]
[Black "Terry, Renato"]
[WhiteFideId "4153472"]
[BlackFideId "3803457"]
[WhiteElo "2469"]
[BlackElo "2577"]
[Result "0-1"]
[Round "03"]
[TimeControl "180+1"]
[Date "2022.10.11"]
[WhiteClock "0:00:04"]
[BlackClock "0:00:25"]

1. d4 {[%clk 0:02:58]}  e6 {[%clk 0:02:55]} 2. e4 {[%clk 0:02:55]}  d5 {[%clk 0:02:54]} 3. Nc3 {[%clk 0:02:55]}  Nf6 {[%clk 0:02:54]} 4. e5 {[%clk 0:02:55]}  Nfd7 {[%clk 0:02:55]} 5. Nce2 {[%clk 0:02:56]}  c5 {[%clk 0:02:55]} 6. c3 {[%clk 0:02:57]}  cxd4 {[%clk 0:02:56]} 7. cxd4 {[%clk 0:02:56]}  f6 {[%clk 0:02:56]} 8. Nf4 {[%clk 0:02:55]}  Bb4+ {[%clk 0:02:56]} 9. Bd2 {[%clk 0:02:55]}  Qb6 {[%clk 0:02:56]} 10. exf6 {[%clk 0:02:47]}  Nxf6 {[%clk 0:02:55]} 11. Nf3 {[%clk 0:02:45]}  Bxd2+ {[%clk 0:02:50]} 12. Qxd2 {[%clk 0:02:41]}  Ne4 {[%clk 0:02:50]} 13. Qc2 {[%clk 0:02:16]}  Qb4+ {[%clk 0:02:36]} 14. Kd1 {[%clk 0:02:06]}  Nc6 {[%clk 0:02:29]} 15. Nd3 {[%clk 0:02:00]}  Qb6 {[%clk 0:02:29]} 16. Qb3 {[%clk 0:01:52]}  Qa5 {[%clk 0:02:23]} 17. Qa3 {[%clk 0:01:34]}  Qxa3 {[%clk 0:02:22]} 18. bxa3 {[%clk 0:01:34]}  Bd7 {[%clk 0:02:21]} 19. Rc1 {[%clk 0:01:33]}  O-O {[%clk 0:02:20]} 20. Be2 {[%clk 0:01:29]}  Be8 {[%clk 0:02:18]} 21. h3 {[%clk 0:01:15]}  Bh5 {[%clk 0:02:12]} 22. g4 {[%clk 0:01:14]}  Bg6 {[%clk 0:02:12]} 23. Rh2 {[%clk 0:01:11]}  Rf6 {[%clk 0:02:10]} 24. Nde5 {[%clk 0:01:06]}  Raf8 {[%clk 0:01:57]} 25. Ke1 {[%clk 0:00:57]}  Be8 {[%clk 0:01:54]} 26. Nxc6 {[%clk 0:00:48]}  bxc6 {[%clk 0:01:54]} 27. Ne5 {[%clk 0:00:49]}  Nxf2 {[%clk 0:01:25]} 28. Kd2 {[%clk 0:00:34]}  Rf4 {[%clk 0:01:17]} 29. Bf3 {[%clk 0:00:19]}  Rxf3 {[%clk 0:00:49]} 30. Nxf3 {[%clk 0:00:19]}  Rxf3 {[%clk 0:00:49]} 31. Ke2 {[%clk 0:00:20]}  Rxa3 {[%clk 0:00:39]} 32. Rxf2 {[%clk 0:00:20]}  Rxa2+ {[%clk 0:00:39]} 33. Ke3 {[%clk 0:00:13]}  Ra3+ {[%clk 0:00:39]} 34. Kf4 {[%clk 0:00:14]}  Kf7 {[%clk 0:00:40]} 35. Rb1 {[%clk 0:00:11]}  Ke7 {[%clk 0:00:39]} 36. Re2 {[%clk 0:00:09]}  Rxh3 {[%clk 0:00:34]} 37. Rb7+ {[%clk 0:00:09]}  Bd7 {[%clk 0:00:34]} 38. Rxa7 {[%clk 0:00:09]}  h6 {[%clk 0:00:35]} 39. g5 {[%clk 0:00:08]}  Rh4+ {[%clk 0:00:34]} 40. Ke3 {[%clk 0:00:07]}  Re4+ {[%clk 0:00:32]} 41. Kd3 {[%clk 0:00:07]}  Rxe2 {[%clk 0:00:33]} 42. Kxe2 {[%clk 0:00:08]}  hxg5 {[%clk 0:00:34]} 43. Ke3 {[%clk 0:00:08]}  Kd6 {[%clk 0:00:31]} 44. Ra6 {[%clk 0:00:07]}  e5 {[%clk 0:00:30]} 45. Ra7 {[%clk 0:00:07]}  exd4+ {[%clk 0:00:29]} 46. Kxd4 {[%clk 0:00:07]}  c5+ {[%clk 0:00:30]} 47. Ke3 {[%clk 0:00:08]}  g6 {[%clk 0:00:29]} 48. Ra8 {[%clk 0:00:07]}  Ke5 {[%clk 0:00:27]} 49. Rd8 {[%clk 0:00:07]}  d4+ {[%clk 0:00:26]} 50. Kd2 {[%clk 0:00:07]}  Be6 {[%clk 0:00:25]} 51. Re8 {[%clk 0:00:04]}  c4 {[%clk 0:00:26]} 52. Re7 {[%clk 0:00:04]}  g4 {[%clk 0:00:26]} 53. Ra7 {[%clk 0:00:04]}  g3 {[%clk 0:00:25]} 0-1


[Site "https://www.chess.com"]

[Event "Titled Tuesday Blitz October 11 Early 2022"]
[White "Wiegmann, Sascha"]
[Black "Rangel, Daniel"]
[WhiteFideId "4682041"]
[BlackFideId "2124475"]
[WhiteElo "2250"]
[BlackElo "2225"]
[Result "1-0"]
[Round "03"]
[TimeControl "180+1"]
[Date "2022.10.12"]
[WhiteClock "0:01:08"]
[BlackClock "0:01:33"]

1. Nf3 {[%clk 0:03:00]}  Nf6 {[%clk 0:02:59]} 2. g3 {[%clk 0:03:01]}  d5 {[%clk 0:02:58]} 3. Bg2 {[%clk 0:03:01]}  c6 {[%clk 0:02:59]} 4. O-O {[%clk 0:03:02]}  Bg4 {[%clk 0:02:59]} 5. d3 {[%clk 0:03:02]}  Nbd7 {[%clk 0:03:00]} 6. Nbd2 {[%clk 0:03:01]}  e6 {[%clk 0:02:59]} 7. c4 {[%clk 0:03:00]}  Be7 {[%clk 0:02:59]} 8. a3 {[%clk 0:03:00]}  O-O {[%clk 0:02:58]} 9. b4 {[%clk 0:03:01]}  a5 {[%clk 0:02:56]} 10. b5 {[%clk 0:03:01]}  cxb5 {[%clk 0:02:56]} 11. cxb5 {[%clk 0:03:02]}  b6 {[%clk 0:02:53]} 12. Nd4 {[%clk 0:02:58]}  Bd6 {[%clk 0:02:44]} 13. Nc6 {[%clk 0:02:50]}  Qc7 {[%clk 0:02:43]} 14. Bb2 {[%clk 0:02:50]}  Rac8 {[%clk 0:02:38]} 15. Rc1 {[%clk 0:02:49]}  Qb7 {[%clk 0:02:38]} 16. Re1 {[%clk 0:02:15]}  Bh5 {[%clk 0:02:34]} 17. Qa4 {[%clk 0:02:00]}  Nc5 {[%clk 0:02:30]} 18. Qh4 {[%clk 0:02:00]}  Ncd7 {[%clk 0:02:23]} 19. e4 {[%clk 0:01:50]}  dxe4 {[%clk 0:02:22]} 20. Nxe4 {[%clk 0:01:42]}  Nxe4 {[%clk 0:02:17]} 21. Bxe4 {[%clk 0:01:36]}  Bg6 {[%clk 0:02:00]} 22. Bxg6 {[%clk 0:01:24]}  hxg6 {[%clk 0:01:58]} 23. Qd4 {[%clk 0:01:25]}  Nf6 {[%clk 0:01:49]} 24. Qxd6 {[%clk 0:01:23]}  Rc7 {[%clk 0:01:49]} 25. f3 {[%clk 0:01:19]}  Rd7 {[%clk 0:01:48]} 26. Qf4 {[%clk 0:01:17]}  Rxd3 {[%clk 0:01:47]} 27. Bxf6 {[%clk 0:01:16]}  gxf6 {[%clk 0:01:47]} 28. Qxf6 {[%clk 0:01:17]}  Rd7 {[%clk 0:01:44]} 29. Re4 {[%clk 0:01:14]}  Rd5 {[%clk 0:01:33]} 30. Rh4 {[%clk 0:01:10]}  Rh5 {[%clk 0:01:34]} 31. Rxh5 {[%clk 0:01:10]}  gxh5 {[%clk 0:01:34]} 32. Qg5+ {[%clk 0:01:06]}  Kh7 {[%clk 0:01:32]} 33. Qxh5+ {[%clk 0:01:06]}  Kg7 {[%clk 0:01:33]} 34. Qg5+ {[%clk 0:01:07]}  Kh7 {[%clk 0:01:33]} 35. Rc4 {[%clk 0:01:08]} 1-0


[Site "https://www.chess.com"]

[Event "Titled Tuesday Blitz October 11 Early 2022"]
[White "Yeletsky, Ivan"]
[Black "Fernandez De La Vara, Arnaldo"]
[WhiteFideId "24180327"]
[BlackFideId "3518388"]
[WhiteElo "2391"]
[BlackElo "2387"]
[Result "1-0"]
[Round "03"]
[TimeControl "180+1"]
[Date "2022.10.11"]
[WhiteClock "0:00:56"]
[BlackClock "0:00:01"]

1. Nf3 {[%clk 0:03:00]}  Nf6 {[%clk 0:02:59]} 2. g3 {[%clk 0:03:00]}  b6 {[%clk 0:03:00]} 3. Bg2 {[%clk 0:03:01]}  Bb7 {[%clk 0:03:00]} 4. d3 {[%clk 0:03:01]}  d5 {[%clk 0:03:00]} 5. O-O {[%clk 0:03:01]}  g6 {[%clk 0:02:59]} 6. b4 {[%clk 0:02:57]}  Bg7 {[%clk 0:02:59]} 7. Bb2 {[%clk 0:02:57]}  O-O {[%clk 0:02:59]} 8. Nbd2 {[%clk 0:02:56]}  Nbd7 {[%clk 0:02:53]} 9. c4 {[%clk 0:02:56]}  c5 {[%clk 0:02:41]} 10. b5 {[%clk 0:02:53]}  d4 {[%clk 0:02:23]} 11. a4 {[%clk 0:02:35]}  Rb8 {[%clk 0:02:16]} 12. a5 {[%clk 0:02:35]}  h6 {[%clk 0:02:04]} 13. axb6 {[%clk 0:02:29]}  Qxb6 {[%clk 0:01:55]} 14. Qc2 {[%clk 0:02:16]}  a6 {[%clk 0:01:25]} 15. Rfb1 {[%clk 0:02:00]}  axb5 {[%clk 0:01:23]} 16. cxb5 {[%clk 0:02:00]}  Bd5 {[%clk 0:01:12]} 17. Nc4 {[%clk 0:01:58]}  Qc7 {[%clk 0:01:11]} 18. Ba3 {[%clk 0:01:51]}  Rb7 {[%clk 0:01:01]} 19. Rb2 {[%clk 0:01:37]}  Rfb8 {[%clk 0:01:00]} 20. Rab1 {[%clk 0:01:37]}  Ne8 {[%clk 0:00:51]} 21. Nfd2 {[%clk 0:01:12]}  Bxg2 {[%clk 0:00:41]} 22. Kxg2 {[%clk 0:01:13]}  Nd6 {[%clk 0:00:42]} 23. b6 {[%clk 0:01:09]}  Nxb6 {[%clk 0:00:30]} 24. Na5 {[%clk 0:01:05]}  Ra7 {[%clk 0:00:26]} 25. Qxc5 {[%clk 0:01:05]}  Qxc5 {[%clk 0:00:24]} 26. Bxc5 {[%clk 0:01:06]}  Rxa5 {[%clk 0:00:23]} 27. Bxb6 {[%clk 0:01:06]}  Raa8 {[%clk 0:00:16]} 28. Nf3 {[%clk 0:01:04]}  e5 {[%clk 0:00:12]} 29. Bc7 {[%clk 0:01:03]}  Rxb2 {[%clk 0:00:12]} 30. Rxb2 {[%clk 0:01:04]}  Ra6 {[%clk 0:00:08]} 31. Rb8+ {[%clk 0:01:02]}  Kh7 {[%clk 0:00:08]} 32. Rd8 {[%clk 0:01:03]}  Nb7 {[%clk 0:00:05]} 33. Rd7 {[%clk 0:01:03]}  f6 {[%clk 0:00:04]} 34. Bxe5 {[%clk 0:01:02]}  Nc5 {[%clk 0:00:04]} 35. Rd5 {[%clk 0:01:02]}  Nxd3 {[%clk 0:00:04]} 36. Bxd4 {[%clk 0:00:59]}  Nb4 {[%clk 0:00:03]} 37. Rd7 {[%clk 0:01:00]}  Kg8 {[%clk 0:00:02]} 38. Nh4 {[%clk 0:00:57]}  g5 {[%clk 0:00:01]} 39. Nf5 {[%clk 0:00:57]}  Bf8 {[%clk 0:00:02]} 40. h4 {[%clk 0:00:57]}  Re6 {[%clk 0:00:01]} 41. e3 {[%clk 0:00:56]} 1-0


[Site "https://www.chess.com"]

[Event "Titled Tuesday Blitz October 11 Early 2022"]
[White "Zemlyanskii, Ivan"]
[Black "Laohawirapap, Prin"]
[WhiteFideId "24249971"]
[BlackFideId "6205003"]
[WhiteElo "2107"]
[BlackElo "2113"]
[Result "1-0"]
[Round "03"]
[TimeControl "180+1"]
[Date "2022.10.11"]
[WhiteClock "0:01:19"]
[BlackClock "0:00:01"]

1. d4 {[%clk 0:03:00]}  Nf6 {[%clk 0:02:58]} 2. c4 {[%clk 0:03:01]}  g6 {[%clk 0:02:58]} 3. Nf3 {[%clk 0:03:02]}  Bg7 {[%clk 0:02:59]} 4. e3 {[%clk 0:03:00]}  O-O {[%clk 0:02:59]} 5. Be2 {[%clk 0:03:01]}  c5 {[%clk 0:03:00]} 6. O-O {[%clk 0:03:01]}  cxd4 {[%clk 0:02:59]} 7. exd4 {[%clk 0:03:02]}  d5 {[%clk 0:03:00]} 8. Nc3 {[%clk 0:03:00]}  Nc6 {[%clk 0:02:59]} 9. h3 {[%clk 0:02:52]}  b6 {[%clk 0:02:54]} 10. Bg5 {[%clk 0:02:47]}  dxc4 {[%clk 0:02:52]} 11. Bxc4 {[%clk 0:02:45]}  Bb7 {[%clk 0:02:52]} 12. Re1 {[%clk 0:02:43]}  Qc7 {[%clk 0:02:43]} 13. Rc1 {[%clk 0:02:42]}  Rad8 {[%clk 0:02:32]} 14. Qe2 {[%clk 0:02:37]}  Qb8 {[%clk 0:01:59]} 15. Qe3 {[%clk 0:02:22]}  Nb4 {[%clk 0:01:46]} 16. Qxe7 {[%clk 0:02:11]}  Bxf3 {[%clk 0:01:42]} 17. Bxf6 {[%clk 0:01:56]}  Nc6 {[%clk 0:01:41]} 18. Qe3 {[%clk 0:01:47]}  Bxf6 {[%clk 0:00:50]} 19. Qxf3 {[%clk 0:01:46]}  Rd6 {[%clk 0:00:49]} 20. Ne4 {[%clk 0:01:37]}  Nxd4 {[%clk 0:00:49]} 21. Qf4 {[%clk 0:01:30]}  Nf5 {[%clk 0:00:12]} 22. g4 {[%clk 0:01:20]}  Be5 {[%clk 0:00:01]} 23. Qxe5 {[%clk 0:01:19]} 1-0


[Site "https://www.chess.com"]

[Event "Titled Tuesday Blitz October 11 Early 2022"]
[White "Zhao, Jun"]
[Black "Martin Carmona, Gaston Manuel"]
[WhiteFideId "8602522"]
[BlackFideId "22284567"]
[WhiteElo "2547"]
[BlackElo "2235"]
[Result "1-0"]
[Round "03"]
[TimeControl "180+1"]
[Date "2022.10.12"]
[WhiteClock "0:00:18"]
[BlackClock "0:00:03"]

1. e4 {[%clk 0:03:00]}  e5 {[%clk 0:02:57]} 2. Nf3 {[%clk 0:03:01]}  Nc6 {[%clk 0:02:58]} 3. Bb5 {[%clk 0:02:59]}  Nf6 {[%clk 0:02:57]} 4. d3 {[%clk 0:02:58]}  Bc5 {[%clk 0:02:57]} 5. Bxc6 {[%clk 0:02:57]}  dxc6 {[%clk 0:02:56]} 6. Qe2 {[%clk 0:02:57]}  Qe7 {[%clk 0:02:48]} 7. Nbd2 {[%clk 0:02:56]}  Bg4 {[%clk 0:02:46]} 8. h3 {[%clk 0:02:55]}  Bh5 {[%clk 0:02:47]} 9. Nf1 {[%clk 0:02:45]}  Nd7 {[%clk 0:02:33]} 10. Ng3 {[%clk 0:02:45]}  Bg6 {[%clk 0:02:33]} 11. h4 {[%clk 0:02:41]}  h5 {[%clk 0:02:32]} 12. Be3 {[%clk 0:02:36]}  f6 {[%clk 0:02:17]} 13. Nd2 {[%clk 0:02:32]}  Nf8 {[%clk 0:02:09]} 14. Nf5 {[%clk 0:02:28]}  Bxf5 {[%clk 0:02:06]} 15. exf5 {[%clk 0:02:29]}  O-O-O {[%clk 0:01:53]} 16. O-O-O {[%clk 0:02:28]}  Bb6 {[%clk 0:01:29]} 17. Ne4 {[%clk 0:02:24]}  Nd7 {[%clk 0:01:26]} 18. Rh3 {[%clk 0:02:17]}  Qf7 {[%clk 0:01:04]} 19. Kb1 {[%clk 0:02:16]}  Rhe8 {[%clk 0:01:04]} 20. Rg3 {[%clk 0:02:15]}  Bxe3 {[%clk 0:00:49]} 21. Qxe3 {[%clk 0:02:15]}  Nb6 {[%clk 0:00:49]} 22. Rg6 {[%clk 0:01:33]}  Re7 {[%clk 0:00:32]} 23. g4 {[%clk 0:01:27]}  hxg4 {[%clk 0:00:31]} 24. Rg1 {[%clk 0:01:27]}  Kb8 {[%clk 0:00:31]} 25. R1xg4 {[%clk 0:01:25]}  a5 {[%clk 0:00:23]} 26. Qg3 {[%clk 0:01:21]}  Qd5 {[%clk 0:00:10]} 27. f3 {[%clk 0:01:07]}  Qb5 {[%clk 0:00:09]} 28. Rxg7 {[%clk 0:00:57]}  Rxg7 {[%clk 0:00:09]} 29. Rxg7 {[%clk 0:00:58]}  Na4 {[%clk 0:00:08]} 30. b3 {[%clk 0:00:57]}  Nc5 {[%clk 0:00:04]} 31. Rg8 {[%clk 0:00:51]}  Rxg8 {[%clk 0:00:03]} 32. Qxg8+ {[%clk 0:00:50]}  Ka7 {[%clk 0:00:03]} 33. Qc4 {[%clk 0:00:29]}  Nxe4 {[%clk 0:00:03]} 34. fxe4 {[%clk 0:00:26]}  Qb6 {[%clk 0:00:04]} 35. Kb2 {[%clk 0:00:20]}  Qg1 {[%clk 0:00:03]} 36. a4 {[%clk 0:00:20]}  Qg4 {[%clk 0:00:02]} 37. Qc5+ {[%clk 0:00:19]}  Kb8 {[%clk 0:00:02]} 38. Qf8+ {[%clk 0:00:17]}  Ka7 {[%clk 0:00:02]} 39. Qxf6 {[%clk 0:00:18]}  c5 {[%clk 0:00:02]} 40. Qxe5 {[%clk 0:00:18]}  Qxh4 {[%clk 0:00:02]} 41. Qxc5+ {[%clk 0:00:18]}  Kb8 {[%clk 0:00:03]} 42. Qxa5 {[%clk 0:00:18]}  Qh8+ {[%clk 0:00:03]} 43. Qc3 {[%clk 0:00:18]}  Qf8 {[%clk 0:00:04]} 44. f6 {[%clk 0:00:19]}  Qf7 {[%clk 0:00:04]} 45. Qe5 {[%clk 0:00:19]}  Qd7 {[%clk 0:00:03]} 46. d4 {[%clk 0:00:18]} 1-0


[Site "https://www.chess.com"]